fUSD/lending_fUSD_20260129
["ID","MTS","AMOUNT","RATE_DAILY","PERIOD"]
[403998354,1769704961848,-2566.0,0.00043763,55]
[403998355,1769704961922,-2566.0,0.00043763,60]
[403998356,1769704962001,-2566.0,0.00043763,90]
[403998357,1769704962078,-2566.0,0.00043763,91]
[403998358,1769704962155,-2566.0,0.00043763,96]
[403998359,1769704962231,-2566.0,0.00043763,120]
[403998360,1769704962309,-50000.0,0.00043783,50]
[403998361,1769704962383,-50000.0,0.00043783,51]
[403998362,1769704962459,-50000.0,0.00043783,52]
[403998363,1769704962535,-50000.0,0.00043783,53]
[403998364,1769704962613,-50000.0,0.00043783,54]
[403998365,1769704962693,-50000.0,0.00043783,55]
[403998366,1769704962770,-50000.0,0.00043783,58]
[403998367,1769704962875,-773.75335495,0.00043799,30]
[403998368,1769704962949,-794.38677775,0.00043799,30]
[403998369,1769704963025,-250.0,0.00043799,30]
[403998370,1769704963100,-600.0,0.00043799,30]
[403998371,1769704963173,-250.0,0.00043799,30]
[403998372,1769704963247,-500.0,0.00043799,30]
[403998373,1769704963321,-823.77908852,0.00043799,120]
[403998374,1769704963393,-802.38222908,0.00043799,120]
[403998375,1769704963467,-250.0,0.00043799,120]
[403998376,1769704963539,-250.0,0.00043799,120]
[403998377,1769704963612,-600.0,0.00043799,120]
[403998378,1769704963685,-500.0,0.00043799,120]
[403998379,1769704963762,-500.0,0.00043799,30]
[403998380,1769704963849,-500.0,0.00043799,120]
[403998381,1769704963926,-194.72792766,0.00043799,30]
[403998382,1769704964005,-201.93286099,0.00043799,120]
[403998383,1769704964083,-151.0,0.00043799,30]
[403998384,1769704964162,-151.0,0.00043799,120]
[403998385,1769704964237,-670.58624095,0.00043799,30]
[403998386,1769704964312,-695.39793187,0.00043799,120]
[403998387,1769704964391,-500.0,0.00043799,30]
[403998388,1769704964473,-250.0,0.00043799,30]
[403998389,1769704964549,-500.0,0.00043799,120]
[403998390,1769704964627,-250.0,0.00043799,30]
[403998391,1769704964702,-2566.0,0.00043799,30]
[403998392,1769704964788,-250.0,0.00043799,120]
[403998393,1769704964868,-2566.0,0.00043799,120]
[403998394,1769704964942,-194.72792766,0.00043799,30]
[403998395,1769704965020,-201.932861,0.00043799,120]
[403998396,1769704965100,-500.0,0.00043799,30]
[403998397,1769704965177,-500.0,0.00043799,120]
[403998398,1769704965252,-194.72792766,0.00043799,30]
[403998399,1769704965330,-201.93286099,0.00043799,120]
[403998400,1769704965406,-500.0,0.00043799,30]
[403998401,1769704965483,-250.0,0.00043799,30]
[403998402,1769704965558,-500.0,0.00043799,30]
[403998403,1769704965631,-500.0,0.00043799,120]
[403998404,1769704965703,-250.0,0.00043799,120]
[403998405,1769704965777,-500.0,0.00043799,120]
[403998406,1769704965853,-151.0,0.00043799,30]
[403998407,1769704965934,-151.0,0.00043799,120]
[403998408,1769704966013,-500.0,0.00043799,30]
[403998409,1769704966091,-500.0,0.00043799,120]
[403998410,1769704966170,-1000.0,0.00043799,30]
[403998411,1769704966242,-1000.0,0.00043799,120]
[403998412,1769704966314,-200.0,0.00043824,120]
[403998413,1769704966390,-1361.9,0.00043943,120]
[403998414,1769704966465,-9139.0,0.00043954,30]
[403998415,1769704966536,-3070.93,0.00044109,120]
[403998416,1769704966608,-168.93752045,0.000442,120]
[403998417,1769704966684,-168.32456472,0.000442,120]
[403998418,1769704966765,-150.0,0.00044384,120]
[403998419,1769704966845,-9139.0,0.00044389,30]
[403998420,1769704966921,-1361.9,0.00044725,120]
[403998421,1769704966997,-9139.0,0.00044825,30]
[403998422,1769704967076,-3070.93,0.00044931,120]
[403998423,1769704967154,-150.0,0.00045,30]
[403998424,1769704967228,-150.19138809,0.00045,30]
[403998425,1769704967303,-150.0,0.00045,30]
[403998426,1769704967379,-150.0,0.00045,30]
[403998427,1769704967453,-150.27508154,0.00045,30]
[403998428,1769704967526,-150.0,0.00045,30]
[403998429,1769704967597,-150.0,0.00045,30]
[403998430,1769704967908,-150.0,0.00045,30]
[403998431,1769704967984,-150.0,0.00045,30]
[403998432,1769704968059,-150.0,0.00045,30]
[403998433,1769704968132,-150.0,0.00045,30]
[403998434,1769704968204,-150.0,0.00045,30]
[403998435,1769704968278,-150.0,0.00045,30]
[403998436,1769704968352,-150.0,0.00045,30]
[403998437,1769704968431,-150.0,0.00045,30]
[403998438,1769704968503,-150.0,0.00045,30]
[403998439,1769704968577,-150.0,0.00045,30]
[403998440,1769704968651,-150.0,0.00045065,30]
[403998441,1769704968724,-150.0,0.00045071,30]
[403998442,1769704968798,-150.0,0.00045125,30]
[403998443,1769704968873,-150.0,0.0004513,30]
[403998444,1769704968947,-150.0,0.00045143,30]
[403998445,1769704969022,-150.0,0.00045172,30]
[403998446,1769704969099,-150.0,0.00045172,30]
[403998447,1769704969194,-150.0,0.00045179,30]
[403998448,1769704969285,-150.0,0.00045185,30]
[403998449,1769704969373,-150.0,0.00045195,30]
[403998450,1769704969449,-150.0,0.00045214,30]
[403998451,1769704969521,-150.0,0.0004525,30]
[403998452,1769704969612,-150.0,0.0004526,30]
[403998453,1769704969690,-150.0,0.00045286,30]
[403998454,1769704969771,-150.0,0.00045294,30]
[403998455,1769704969849,-200.0,0.00045324,120]
[403998456,1769704969926,-150.0,0.00045325,30]
[403998457,1769704970003,-150.0,0.00045345,30]
[403998458,1769704970082,-150.0,0.00045345,30]
[403998459,1769704970158,-150.0,0.00045357,30]
[403998460,1769704970233,-150.0,0.00045357,30]
[403998461,1769704970305,-150.0,0.0004537,30]
[403998462,1769704970380,-150.0,0.00045375,30]
[403998463,1769704970453,-150.0,0.0004539,30]
[403998464,1769704970531,-150.0,0.00045429,30]
[403998465,1769704970611,-150.0,0.00045455,30]
[403998466,1769704970683,-168.93752045,0.000455,120]
[403998467,1769704970756,-168.32456472,0.000455,120]
[403998468,1769704970838,-150.0,0.000455,30]
[403998469,1769704970911,-150.0,0.000455,30]
[403998470,1769704970988,-1361.9,0.00045506,120]
[403998471,1769704971063,-150.0,0.00045517,30]
[403998472,1769704971136,-150.0,0.00045517,30]
[403998473,1769704971209,-150.0,0.00045519,30]
[403998474,1769704971285,-150.0,0.00045536,30]
[403998475,1769704971362,-150.0,0.00045556,30]
[403998476,1769704971438,-150.0,0.00045556,30]
[403998477,1769704971518,-150.0,0.00045571,30]
[403998478,1769704971596,-150.0,0.00045584,30]
[403998479,1769704971672,-150.0,0.00045588,30]
[403998480,1769704971747,-150.0,0.00045625,30]
[403998481,1769704971821,-150.0,0.00045643,30]
[403998482,1769704971895,-150.0,0.00045649,30]
[403998483,1769704971970,-150.0,0.0004569,30]
[403998484,1769704972046,-150.0,0.0004569,30]
[403998485,1769704972122,-150.0,0.00045714,30]
[403998486,1769704972195,-150.0,0.00045714,30]
[403998487,1769704972268,-150.0,0.00045714,30]
[403998488,1769704972346,-150.0,0.00045714,30]
[403998489,1769704972429,-150.0,0.00045741,30]
[403998490,1769704972510,-150.0,0.0004575,30]
[403998491,1769704972594,-3070.93,0.00045753,120]
[403998492,1769704972676,-150.0,0.00045779,30]
[403998493,1769704972763,-150.0,0.00045786,30]
[403998494,1769704972848,-150.0,0.00045833,30]
[403998495,1769704972933,-150.0,0.00045844,30]
[403998496,1769704973015,-150.0,0.00045857,30]
[403998497,1769704973103,-150.0,0.00045862,30]
[403998498,1769704973190,-150.0,0.00045862,30]
[403998499,1769704973278,-150.0,0.00045875,30]
[403998500,1769704973369,-150.0,0.00045882,30]
[403998501,1769704973460,-150.0,0.00045893,30]
[403998502,1769704973553,-150.0,0.00045909,30]
[403998503,1769704973642,-150.0,0.00045926,30]
[403998504,1769704973734,-150.0,0.00045929,30]
[403998505,1769704973840,-150.0,0.00045974,30]
[403998506,1769704973948,-500.0,0.00046,120]
[403998507,1769704974046,-6752.48,0.00046,30]
[403998508,1769704974141,-150.0,0.00046,30]
[403998509,1769704974245,-150.0,0.00046,30]
[403998510,1769704974600,-1102.0,0.00046028,30]
[403998511,1769704974698,-150.0,0.00046034,30]
[403998512,1769704974804,-150.0,0.00046034,30]
[403998513,1769704974907,-150.0,0.00046039,30]
[403998514,1769704975020,-150.0,0.00046071,30]
[403998515,1769704975127,-150.0,0.00046071,30]
[403998516,1769704975245,-150.0,0.00046104,30]
[403998517,1769704975352,-150.0,0.00046111,30]
[403998518,1769704975480,-150.0,0.00046111,30]
[403998519,1769704975593,-150.0,0.00046125,30]
[403998520,1769704975690,-150.0,0.00046143,30]
[403998521,1769704975790,-150.0,0.00046169,30]
[403998522,1769704975889,-150.0,0.00046176,30]
[403998523,1769704975988,-150.0,0.00046207,30]
[403998524,1769704976109,-150.0,0.00046207,30]
[403998525,1769704976204,-150.0,0.00046214,30]
[403998526,1769704976294,-150.0,0.00046234,30]
[403998527,1769704976390,-150.0,0.0004625,30]
[403998528,1769704976480,-150.0,0.0004625,30]
[403998529,1769704976566,-150.0,0.0004625,30]
[403998530,1769704976660,-150.0,0.0004625,30]
[403998531,1769704976768,-13453.59,0.00046285,120]
[403998532,1769704976869,-150.0,0.00046286,30]
[403998533,1769704976955,-1361.9,0.00046288,120]
[403998534,1769704977042,-150.0,0.00046296,30]
[403998535,1769704977124,-150.0,0.00046299,30]
[403998536,1769704977205,-150.0,0.00046357,30]
[403998537,1769704977287,-150.0,0.00046364,30]
[403998538,1769704977369,-150.0,0.00046375,30]
[403998539,1769704977450,-150.0,0.00046379,30]
[403998540,1769704977531,-150.0,0.00046379,30]
[403998541,1769704977612,-150.0,0.00046429,30]
[403998542,1769704977690,-150.0,0.00046429,30]
[403998543,1769704977771,-150.0,0.00046429,30]
[403998544,1769704977855,-150.0,0.00046429,30]
[403998545,1769704977935,-150.0,0.00046471,30]
[403998546,1769704978014,-150.0,0.00046481,30]
[403998547,1769704978096,-150.0,0.00046494,30]
[403998548,1769704978174,-150.0,0.000465,30]
[403998549,1769704978252,-150.0,0.000465,30]
[403998550,1769704978327,-150.0,0.00046552,30]
[403998551,1769704978400,-150.0,0.00046552,30]
[403998552,1769704978472,-150.0,0.00046558,30]
[403998553,1769704978545,-150.0,0.00046571,30]
[403998554,1769704978616,-3070.93,0.00046575,120]
[403998555,1769704978684,-150.0,0.00046607,30]
[403998556,1769704978755,-150.0,0.00046623,30]
[403998557,1769704978831,-150.0,0.00046625,30]
[403998558,1769704978907,-150.0,0.00046643,30]
[403998559,1769704978983,-150.0,0.00046667,30]
[403998560,1769704979059,-150.0,0.00046667,30]
[403998561,1769704979136,-150.0,0.00046667,30]
[403998562,1769704979210,-150.0,0.00046688,30]
[403998563,1769704979283,-150.0,0.00046714,30]
[403998564,1769704979357,-150.0,0.00046724,30]
[403998565,1769704979433,-150.0,0.00046724,30]
[403998566,1769704979504,-274.81,0.00046737,120]
[403998567,1769704979580,-150.0,0.0004675,30]
[403998568,1769704979658,-150.0,0.00046753,30]
[403998569,1769704979737,-150.0,0.00046765,30]
[403998570,1769704979815,-150.0,0.00046786,30]
[403998571,1769704979892,-150.0,0.00046786,30]
[403998572,1769704979967,-529.97,0.000468,120]
[403998573,1769704980044,-500.83,0.000468,120]
[403998574,1769704980119,-150.0,0.00046818,30]
[403998575,1769704980195,-150.0,0.00046849,120]
[403998576,1769704980277,-150.0,0.00046852,30]
[403998577,1769704980359,-150.0,0.00046857,30]
[403998578,1769704980435,-150.0,0.00046875,30]
[403998579,1769704980509,-150.0,0.00046883,30]
[403998580,1769704980582,-150.0,0.00046897,30]
[403998581,1769704980656,-150.0,0.00046897,30]
[403998582,1769704980729,-168.32456472,0.000469,120]
[403998583,1769704980805,-150.0,0.00046929,30]
[403998584,1769704980884,-150.0,0.00046948,30]
[403998585,1769704980960,-150.0,0.00046964,30]
[403998586,1769704981036,-150.0,0.00047,30]
[403998587,1769704981116,-150.0,0.00047,30]
[403998588,1769704981194,-150.0,0.00047013,30]
[403998589,1769704981270,-150.0,0.00047037,30]
[403998590,1769704981613,-150.0,0.00047059,30]
[403998591,1769704981694,-150.0,0.00047069,30]
[403998592,1769704981778,-150.0,0.00047069,30]
[403998593,1769704981862,-1361.9,0.00047069,120]
[403998594,1769704981944,-150.0,0.00047071,30]
[403998595,1769704982030,-150.0,0.00047078,30]
[403998596,1769704982116,-150.0,0.00047125,30]
[403998597,1769704982202,-150.0,0.00047143,30]
[403998598,1769704982285,-150.0,0.00047143,30]
[403998599,1769704982368,-150.0,0.00047143,30]
[403998600,1769704982451,-150.0,0.00047143,30]
[403998601,1769704982533,-150.0,0.00047208,30]
[403998602,1769704982614,-150.0,0.00047214,30]
[403998603,1769704982694,-150.0,0.00047222,30]
[403998605,1769704982776,-150.0,0.00047222,30]
[403998606,1769704982862,-150.0,0.00047241,30]
[403998607,1769704982943,-150.0,0.00047241,30]
[403998608,1769704983054,-150.0,0.0004725,30]
[403998609,1769704983159,-150.0,0.00047273,30]
[403998610,1769704983262,-150.0,0.00047286,30]
[403998611,1769704983347,-150.0,0.00047321,30]
[403998612,1769704983440,-150.0,0.00047338,30]
[403998613,1769704983523,-150.0,0.00047353,30]
[403998614,1769704983605,-150.0,0.00047357,30]
[403998615,1769704983686,-150.0,0.00047375,30]
[403998616,1769704983767,-3070.93,0.00047397,120]
[403998617,1769704983852,-500.0,0.00047402,120]
[403998618,1769704983934,-150.0,0.00047403,30]
[403998619,1769704984014,-150.0,0.00047407,30]
[403998620,1769704984095,-150.0,0.00047414,30]
[403998621,1769704984178,-150.0,0.00047414,30]
[403998622,1769704984261,-150.0,0.00047429,30]
[403998623,1769704984344,-150.0,0.00047468,30]
[403998624,1769704984425,-150.0,0.000475,30]
[403998625,1769704984505,-150.0,0.000475,30]
[403998626,1769704984584,-150.0,0.000475,30]
[403998627,1769704984665,-150.0,0.000475,30]
[403998628,1769704984768,-150.0,0.000475,30]
[403998629,1769704984857,-150.0,0.000475,30]
[403998630,1769704984941,-150.0,0.00047532,30]
[403998631,1769704985022,-150.0,0.00047571,30]
[403998632,1769704985107,-150.0,0.00047586,30]
[403998633,1769704985189,-150.0,0.00047586,30]
[403998634,1769704985271,-150.0,0.00047593,30]
[403998635,1769704985352,-150.0,0.00047597,30]
[403998636,1769704985437,-150.0,0.00047625,30]
[403998637,1769704985517,-150.0,0.00047643,30]
[403998638,1769704985597,-150.0,0.00047647,30]
[403998639,1769704985675,-150.0,0.00047662,30]
[403998640,1769704985753,-150.0,0.00047679,30]
[403998641,1769704985844,-150.0,0.00047714,30]
[403998642,1769704985923,-150.0,0.00047727,30]
[403998643,1769704986007,-150.0,0.0004775,30]
[403998644,1769704986089,-150.0,0.00047759,30]
[403998645,1769704986167,-150.0,0.00047759,30]
[403998646,1769704986254,-150.0,0.00047778,30]
[403998647,1769704986333,-150.0,0.00047778,30]
[403998648,1769704986413,-150.0,0.00047786,30]
[403998649,1769704986493,-150.0,0.00047792,30]
[403998650,1769704986575,-529.97,0.0004782,120]
[403998651,1769704986654,-150.0,0.00047857,30]
[403998652,1769704986734,-150.0,0.00047857,30]
[403998653,1769704986816,-150.0,0.00047857,30]
[403998654,1769704986897,-150.0,0.00047857,30]
[403998655,1769704986976,-150.0,0.00047875,30]
[403998656,1769704987057,-150.0,0.00047922,30]
[403998657,1769704987138,-150.0,0.00047929,30]
[403998658,1769704987218,-150.0,0.00047931,30]
[403998659,1769704987296,-150.0,0.00047931,30]
[403998660,1769704987374,-150.0,0.00047941,30]
[403998661,1769704987453,-150.0,0.00047963,30]
[403998662,1769704987531,-150.0,0.00047987,30]
[403998663,1769704987610,-150.0,0.00048,30]
[403998664,1769704987687,-150.0,0.00048,30]
[403998665,1769704987765,-809.84309883,0.00048,120]
[403998666,1769704987850,-500.0,0.00048,120]
[403998667,1769704987930,-150.0,0.00048036,30]
[403998668,1769704988011,-150.0,0.00048052,30]
[403998669,1769704988091,-150.0,0.00048071,30]
[403998670,1769704988175,-150.0,0.00048103,30]
[403998671,1769704988258,-150.0,0.00048103,30]
[403998672,1769704988648,-150.0,0.00048117,30]
[403998673,1769704988730,-150.0,0.00048125,30]
[403998674,1769704988810,-150.0,0.00048143,30]
[403998675,1769704988889,-150.0,0.00048148,30]
[403998676,1769704988968,-150.0,0.00048182,30]
[403998677,1769704989049,-150.0,0.00048214,30]
[403998678,1769704989128,-150.0,0.00048214,30]
[403998679,1769704989205,-3070.93,0.00048219,120]
[403998680,1769704989279,-150.0,0.00048235,30]
[403998681,1769704989356,-150.0,0.00048247,30]
[403998682,1769704989434,-150.0,0.0004825,30]
[403998683,1769704989511,-150.0,0.00048276,30]
[403998684,1769704989583,-150.0,0.00048276,30]
[403998685,1769704989659,-150.0,0.00048286,30]
[403998686,1769704989735,-168.32456472,0.000483,120]
[403998687,1769704989811,-150.0,0.00048312,30]
[403998688,1769704989886,-150.0,0.00048333,30]
[403998689,1769704989964,-150.0,0.00048333,30]
[403998690,1769704990044,-150.0,0.00048333,30]
[403998691,1769704990122,-500.0,0.00048356,60]
[403998692,1769704990195,-500.0,0.00048356,60]
[403998693,1769704990268,-1000.0,0.00048356,60]
[403998694,1769704990339,-150.0,0.00048357,30]
[403998695,1769704990413,-150.0,0.00048375,30]
[403998696,1769704990492,-150.0,0.00048377,30]
[403998697,1769704990571,-150.0,0.00048393,30]
[403998698,1769704990649,-150.0,0.00048429,30]
[403998699,1769704990727,-150.0,0.00048442,30]
[403998700,1769704990809,-150.0,0.00048448,30]
[403998701,1769704990886,-150.0,0.00048448,30]
[403998702,1769704990963,-1102.0,0.0004845,30]
[403998703,1769704991040,-150.0,0.000485,30]
[403998704,1769704991118,-150.0,0.000485,30]
[403998705,1769704991192,-150.0,0.00048506,30]
[403998706,1769704991264,-150.0,0.00048519,30]
[403998707,1769704991338,-150.0,0.00048529,30]
[403998708,1769704991411,-150.0,0.00048571,30]
[403998709,1769704991486,-150.0,0.00048571,30]
[403998710,1769704991566,-150.0,0.00048571,30]
[403998711,1769704991643,-150.0,0.00048571,30]
[403998712,1769704991718,-150.0,0.00048621,30]
[403998713,1769704991796,-150.0,0.00048621,30]
[403998714,1769704991875,-150.0,0.00048625,30]
[403998715,1769704991949,-150.0,0.00048636,30]
[403998716,1769704992024,-150.0,0.00048643,30]
[403998717,1769704992098,-150.0,0.00048701,30]
[403998718,1769704992170,-150.0,0.00048704,30]
[403998719,1769704992246,-150.0,0.00048714,30]
[403998720,1769704992323,-150.0,0.0004875,30]
[403998721,1769704992398,-150.0,0.0004875,30]
[403998722,1769704992473,-150.0,0.0004875,30]
[403998723,1769704992548,-150.0,0.0004875,30]
[403998724,1769704992620,-150.0,0.00048766,30]
[403998725,1769704992689,-150.0,0.00048786,30]
[403998726,1769704992756,-150.0,0.00048793,30]
[403998727,1769704992831,-150.0,0.00048793,30]
[403998728,1769704992905,-500.0,0.00048803,120]
[403998729,1769704992978,-150.0,0.00048824,30]
[403998730,1769704993056,-150.0,0.00048831,30]
[403998731,1769704993132,-529.97,0.0004884,120]
[403998732,1769704993206,-150.0,0.00048857,30]
[403998733,1769704993277,-150.0,0.00048875,30]
[403998734,1769704993348,-150.0,0.00048889,30]
[403998735,1769704993425,-150.0,0.00048889,30]
[403998736,1769704993501,-150.0,0.00048896,30]
[403998737,1769704993576,-500.0,0.00048904,60]
[403998738,1769704993649,-1000.0,0.00048904,60]
[403998739,1769704993719,-150.0,0.00048929,30]
[403998740,1769704993798,-150.0,0.00048929,30]
[403998741,1769704993877,-150.0,0.00048961,30]
[403998742,1769704993954,-150.0,0.00048966,30]
[403998743,1769704994032,-150.0,0.00048966,30]
[403998744,1769704994109,-1009.42804069,0.00049,120]
[403998745,1769704994184,-150.0,0.00049,30]
[403998746,1769704994259,-150.0,0.00049,30]
[403998747,1769704994338,-501.0,0.00049,31]
[403998748,1769704994415,-150.0,0.00049026,30]
[403998749,1769704994493,-3070.93,0.00049041,120]
[403998750,1769704994569,-150.0,0.00049071,30]
[403998751,1769704994821,-150.0,0.00049074,30]
[403998752,1769704994933,-150.0,0.00049091,30]
[403998753,1769704995010,-150.0,0.00049107,30]
[403998754,1769704995088,-150.0,0.00049118,30]
[403998755,1769704995162,-150.0,0.00049125,30]
[403998756,1769704995234,-150.0,0.00049138,30]
[403998757,1769704995305,-150.0,0.00049138,30]
[403998758,1769704995381,-150.0,0.00049143,30]
[403998759,1769704995456,-150.0,0.00049156,30]
[403998760,1769704995529,-150.0,0.00049167,30]
[403998761,1769704995604,-150.0,0.00049214,30]
[403998762,1769704995678,-150.0,0.00049221,30]
[403998763,1769704995754,-150.0,0.0004925,30]
[403998764,1769704995840,-150.0,0.00049259,30]
[403998765,1769704995918,-150.0,0.00049286,30]
[403998766,1769704995995,-150.0,0.00049286,30]
[403998767,1769704996071,-150.0,0.00049286,30]
[403998768,1769704996150,-150.0,0.00049286,30]
[403998769,1769704996228,-180.11,0.00049291,30]
[403998770,1769704996304,-150.0,0.0004931,30]
[403998771,1769704996386,-150.0,0.0004931,30]
[403998772,1769704996464,-150.0,0.00049315,120]
[403998773,1769704996541,-746.14595463,0.00049347,60]
[403998774,1769704996620,-766.04318008,0.00049347,60]
[403998775,1769704996698,-250.0,0.00049347,60]
[403998776,1769704996779,-600.0,0.00049347,60]
[403998777,1769704996859,-250.0,0.00049347,60]
[403998778,1769704996938,-500.0,0.00049347,60]
[403998779,1769704997017,-500.0,0.00049347,60]
[403998780,1769704997095,-187.78006525,0.00049347,60]
[403998781,1769704997173,-151.0,0.00049347,60]
[403998782,1769704997249,-646.65982734,0.00049347,60]
[403998783,1769704997327,-500.0,0.00049347,60]
[403998784,1769704997405,-250.0,0.00049347,60]
[403998785,1769704997482,-250.0,0.00049347,60]
[403998786,1769704997556,-2566.0,0.00049347,60]
[403998787,1769704997630,-187.78006525,0.00049347,60]
[403998788,1769704997708,-257.31431131,0.00049347,60]
[403998789,1769704997790,-500.0,0.00049347,60]
[403998790,1769704997873,-187.78006525,0.00049347,60]
[403998791,1769704997949,-500.0,0.00049347,60]
[403998792,1769704998026,-250.0,0.00049347,60]
[403998793,1769704998102,-500.0,0.00049347,60]
[403998794,1769704998177,-151.0,0.00049347,60]
[403998795,1769704998252,-500.0,0.00049347,60]
[403998796,1769704998325,-1000.0,0.00049347,60]
[403998797,1769704998399,-150.0,0.00049351,30]
[403998798,1769704998475,-150.0,0.00049357,30]
[403998799,1769704998549,-1000.0,0.00049364,30]
[403998800,1769704998623,-150.0,0.00049375,30]
[403998801,1769704998702,-150.0,0.00049412,30]
[403998802,1769704998783,-150.0,0.00049416,30]
[403998803,1769704998863,-150.0,0.00049429,30]
[403998804,1769704998940,-150.0,0.00049444,30]
[403998805,1769704999016,-150.0,0.00049444,30]
[403998806,1769704999094,-414.76724051,0.00049452,60]
[403998807,1769704999170,-500.0,0.00049452,60]
[403998808,1769704999246,-1000.0,0.00049452,60]
[403998809,1769704999321,-150.0,0.00049464,30]
[403998810,1769704999398,-150.0,0.00049481,30]
[403998811,1769704999482,-150.0,0.00049483,30]
[403998812,1769704999568,-150.0,0.00049483,30]
[403998813,1769704999652,-150.0,0.000495,30]
[403998814,1769704999738,-150.0,0.000495,30]
[403998815,1769704999823,-288.60325857,0.000495,120]
[403998816,1769704999903,-500.83,0.0004952,120]
[403998817,1769704999981,-1000.0,0.0004953,30]
[403998818,1769705000058,-150.0,0.00049545,30]
[403998819,1769705000134,-1000.0,0.0004957,30]
[403998820,1769705000213,-150.0,0.00049571,30]
[403998821,1769705000288,-1000.0,0.00049609,30]
[403998822,1769705000365,-150.0,0.0004961,30]
[403998823,1769705000440,-150.0,0.00049625,30]
[403998824,1769705000514,-150.0,0.0004963,30]
[403998825,1769705000587,-150.0,0.00049643,30]
[403998826,1769705000661,-150.0,0.00049643,30]
[403998827,1769705000736,-150.0,0.00049655,30]
[403998828,1769705000814,-150.0,0.00049655,30]
[403998829,1769705000904,-150.0,0.00049675,30]
[403998830,1769705000992,-1000.0,0.00049676,30]
[403998831,1769705001078,-150.0,0.00049706,30]
[403998832,1769705001398,-150.0,0.00049714,30]
[403998833,1769705001488,-150.0,0.0004974,30]
[403998834,1769705001567,-150.0,0.0004975,30]
[403998835,1769705001643,-1000.0,0.00049772,30]
[403998836,1769705001720,-150.0,0.00049786,30]
[403998837,1769705001800,-404.33536752,0.00049796,30]
[403998838,1769705001880,-712.35378748,0.00049799,45]
[403998839,1769705001959,-693.8510917,0.00049799,45]
[403998840,1769705002041,-250.0,0.00049799,45]
[403998841,1769705002119,-250.0,0.00049799,45]
[403998842,1769705002197,-600.0,0.00049799,45]
[403998843,1769705002274,-500.0,0.00049799,45]
[403998844,1769705002351,-719.52358209,0.00049799,50]
[403998845,1769705002430,-738.71087761,0.00049799,50]
[403998846,1769705002511,-250.0,0.00049799,50]
[403998847,1769705002589,-600.0,0.00049799,50]
[403998848,1769705002665,-250.0,0.00049799,50]
[403998849,1769705002744,-500.0,0.00049799,50]
[403998850,1769705002825,-500.0,0.00049799,45]
[403998851,1769705002905,-500.0,0.00049799,50]
[403998852,1769705002985,-174.61919141,0.00049799,45]
[403998853,1769705003066,-181.08010149,0.00049799,50]
[403998854,1769705003146,-220.0,0.00049799,45]